Cogmind - Beta 14 @@@ ROGUE MODE // 2024.11.16 @ 19:49:31 Player: Shimmyarah Result: Destroyed by Y-45 Defender with Heavy Assault Rifle Performance ------------- Evolutions (0) 0 Regions Visited (3) 600 Robots Destroyed (30) 150 Value Destroyed (593) 593 Prototype IDs (1) 20 Alien Tech Used (0) 0 Bonus (0) 0 TOTAL SCORE: 1363 Bonus ------- None Cogmind --------- Core Integrity 0/250 Matter 162/300 Energy 200/200 System Corruption 1% Temperature Cool (0) Movement Treading (480) Ox4 Location -9/Recycling Parts ------- > --- POWER (1) -------- Subdweller Power Source > --- PROPULSION (2) --- Light Treads > --- UTILITY (2) ------ Huge Storage Unit Signal Interpreter > --- WEAPON (2) ------- Particle Gun Grenade Launcher > --- INVENTORY (25) --- Subdweller Power Source Light Nuclear Core Disposable Heat Sink Large Storage Unit High-capacity Battery (250) Seismic Detector Targeting Computer Medium Laser Small Laser Improved Medium Laser Beam Cannon Light Assault Rifle Mining Laser Scrap Shield Fragment (48) Scrap Shield Fragment (48) Scrap Shield Fragment (44) Peak State ------------ > --- POWER ------------ Light Ion Engine > --- PROPULSION ------- Light Treads Light Treads > --- UTILITY ---------- Huge Storage Unit Improved Terrain Scanner > --- WEAPON ----------- Particle Gun Improved Medium Laser > --- INVENTORY -------- Subdweller Power Source Subdweller Power Source Light Nuclear Core Disposable Heat Sink Large Storage Unit High-capacity Battery Targeting Computer Medium Laser Small Laser Beam Cannon Light Assault Rifle Grenade Launcher Mining Laser Mining Laser Scrap Shield Fragment Scrap Shield Fragment Scrap Shield Fragment [Rating: 14] Favorites ----------- Power Light Ion Engine Engine Light Ion Engine Propulsion Light Treads Treads Light Treads Leg Aluminum Leg Wheel Wheel Utility Improved Terrain Scanner Device Improved Terrain Scanner Storage Huge Storage Unit Processor Signal Interpreter Weapon Particle Gun Energy Gun Particle Gun Launcher Grenade Launcher Special Weapon Mining Laser Build | -11 -10 -10 -9 ------- Run | Yrd Mat Sub Rec Slots Evolved . | . . . . Power . | . . . . Propulsion . | . . . . Utility . | . . . . Weapon . | . . . . Parts Attached 22 | 4 15 3 . Power 2 | . 1 1 . Engine 2 | . 1 1 . Core . | . . . . Reactor . | . . . . Propulsion 6 | 3 3 . . Treads 3 | 1 2 . . Leg . | . . . . Wheel 3 | 2 1 . . Hover . | . . . . Flight . | . . . . Utility 5 | 1 3 1 . Device 2 | 1 1 . . Storage 2 | . 2 . . Processor 1 | . . 1 . Hackware . | . . . . Protection . | . . . . Artifact . | . . . . Weapon 9 | . 8 1 . Energy Gun 4 | . 4 . . Energy Cannon . | . . . . Ballistic Gun . | . . . . Ballistic Cannon . | . . . . Launcher 3 | . 2 1 . Special Weapon 2 | . 2 . . Impact Weapon . | . . . . Slashing Weapon . | . . . . Piercing Weapon . | . . . . Special Melee Weapon . | . . . . Unidentified Prototypes 1 | . 1 . . Parts Lost 8 | . 5 3 . Power 2 | . 1 1 . Propulsion 3 | . 2 1 . Utility 2 | . 1 1 . Weapon 1 | . 1 . . Highest Loss Streak 3 | . 3 3 . To Critical Strikes . | . . . . Average Slot Usage (%) 95 | . 97 77 85 Engine 13 | . 13 10 14 Treads 19 | . 19 18 14 Wheel 5 | . 6 . . Device 12 | . 13 4 . Storage 14 | . 14 14 14 Energy Gun 19 | . 19 14 14 Launcher 3 | . 2 11 14 Special Weapon 5 | . 5 2 . Peak Build Rating 14 | 8 14 12 10 Average Rating 10 | 6 10 9 10 On Entrance 8 | 6 7 12 10 Naked Turns . | . . . . Heaviest Build 91 | 14 90 91 91 Greatest Support 40 | 20 40 40 20 Greatest Overweight (x) 9 | . 9 4 4 Average Overweight (x) 1 | . 1 3 4 Largest Inventory Capacity 25 | 8 25 25 25 Average Capacity 19 | 8 19 25 25 Most Carried 18 | 8 18 18 16 Average Carried 14 | 5 14 17 16 Final Capacity 25 | 8 25 25 25 Final Carried 18 | 6 18 16 16 Class Distribution -------------------- 100% | Mutant Dominant Class ---------------- Mutant | -10/Materials Mutant | -10/Subcaves Mutant | -9/Recycling Resources | -11 -10 -10 -9 ----------- Run | Yrd Mat Sub Rec Matter Collected 447 | 240 200 7 . Remotely . | . . . . Salvage Created 614 | 184 381 49 . Parts 54 | 15 32 7 . Haulers Intercepted . | . . . . Recyclers Shooed . | . . . . Parts Field Recycled . | . . . . Retrieved Matter . | . . . . Parts Self-Destructed 7 | . . 7 . Prevented . | . . . . Kills | -11 -10 -10 -9 ------- Run | Yrd Mat Sub Rec Combat Hostiles Destroyed 18 | . 12 6 . Guns 8 | . 7 1 . AOE 10 | . 5 5 . Classes Destroyed 8 | 2 5 1 . Builder 2 | . 2 . . Tunneler 5 | 4 1 . . Recycler 1 | 1 . . . Turret 2 | . . 2 . Watcher 2 | . 2 . . Swarmer 9 | . 3 6 . Grunt 6 | . 6 . . Subdweller 3 | . 3 . . Best Kill Streak 6 | 3 6 6 . Combat Bots Only 6 | . 5 6 . Max Kills in Single Turn 2 | 1 2 2 . Gunslinging . | . . . . Exploded 2 | . 2 2 . Melee . | . . . . Uniques/NPCs Destroyed . | . . . . Combat | -11 -10 -10 -9 -------- Run | Yrd Mat Sub Rec Hostile Shots Fired 162 | . 59 101 2 Missed 58 | . 16 41 1 Damage Taken 1056 | 3 611 425 17 Core 259 | . 160 82 17 Absorbed by Shields . | . . . . Regen/Repaired (Parts) 16 | . 16 . . Core Remaining (%) 100 | 100 . . . Volleys Fired 61 | 15 33 13 . Largest 2 | 2 2 2 . Hottest 121 | 90 121 95 . Shots Fired 115 | 30 59 26 . Gun 91 | 30 48 13 . Cannon . | . . . . Launcher 21 | . 8 13 . Special 3 | . 3 . . Kinetic . | . . . . Thermal 94 | 30 51 13 . Explosive 21 | . 8 13 . Electromagnetic . | . . . . Robot Hit Streak 13 | 4 13 6 . Robot Miss Streak 4 | 3 4 2 . Penetration Max . | . . . . Secondary Targets . | . . . . Shots Hit Robots 62 | 14 32 16 . Core Hits 51 | 6 29 16 . Critical Kills . | . . . . Critical Parts Destroyed . | . . . . Critical Strikes 4 | 1 3 . . Burn 4 | 1 3 . . Melee Attacks . | . . . . Impact . | . . . . Slashing . | . . . . Piercing . | . . . . Sneak Attacks . | . . . . Combat Hostiles . | . . . . Follow-up Attacks . | . . . . Damage Inflicted 1847 | 175 1078 594 . Guns 718 | 168 410 140 . Cannons . | . . . . Explosions 1066 | . 612 454 . Melee . | . . . . Ramming 63 | 7 56 . . Kinetic . | . . . . Thermal 850 | 168 542 140 . Explosive 934 | . 480 454 . Electromagnetic . | . . . . Impact . | . . . . Slashing . | . . . . Piercing . | . . . . Highest Corruption 1 | . 1 1 1 Average Corruption 1 | . 1 1 1 Corruption Purged . | . . . . Corruption Blocked . | . . . . Effects 19 | . 18 1 . Message Errors 6 | . 5 1 . Matter Fused 2 | . 2 . . Heat Flow Errors 1 | . 1 . . Energy Discharges 7 | . 7 . . Data Loss (minor) 1 | . 1 . . Misfires 1 | . 1 . . Alerts 1 | . 1 . . Overload Shots . | . . . . Overflow Damage 83 | . 47 36 . Projectiles . | . . . . Explosions 83 | . 47 36 . Melee . | . . . . Knockbacks . | . . . . Impact . | . . . . Kinetic . | . . . . Secondary . | . . . . Self-Inflicted Damage 119 | 3 50 66 . Shots 7 | . 5 2 . Rammed 7 | 1 6 . . Targets Rammed 8 | 1 7 . . Kicked . | . . . . Crushed 1 | . 1 . . Highest Temperature 270 | 270 194 16 . Average Temperature 73 | 115 57 6 . Received Heat Transfer 342 | . 180 162 . Siege Activations . | . . . . Robots Corrupted . | . . . . Combat Hostiles . | . . . . Parts Fried . | . . . . Impact Corruptions . | . . . . Robots Melted . | . . . . Combat Hostiles . | . . . . Parts Melted 4 | 1 3 . . Heat Transferred 2310 | 508 1469 333 . Parts Sabotaged . | . . . . Parts Stolen . | . . . . Parts Stripped . | . . . . Power Chain Reactions . | . . . . Alert | -11 -10 -10 -9 ------- Run | Yrd Mat Sub Rec Peak Influence 247 | 25 247 . 103 Initial 103 | . 16 . 103 Average 50 | 12 51 . 103 Maximum Alert Level 1 | . 1 . . Low Security (%) 94 | 100 93 . 100 Level 1 5 | . 6 . . Level 2 . | . . . . Level 3 . | . . . . Level 4 . | . . . . Level 5 . | . . . . High Security . | . . . . Max Security . | . . . . Squads Dispatched . | . . . . Investigation . | . . . . Extermination . | . . . . Reinforcement . | . . . . Assault . | . . . . Garrison . | . . . . Intercept . | . . . . Searches Triggered . | . . . . Construction Impeded . | . . . . Haulers Reinforced . | . . . . Active Scanning Responses . | . . . . Cargo Convoy Interrupts . | . . . . Stealth | -11 -10 -10 -9 --------- Run | Yrd Mat Sub Rec Distress Signals 2 | . 2 . . Communications Jammed . | . . . . Distress Signals . | . . . . Times Spotted 35 | . 23 11 1 Peak Tracking Total 9 | . 7 9 1 Tactical Retreats 3 | . 1 2 . Traps | -11 -10 -10 -9 ------- Run | Yrd Mat Sub Rec Traps Triggered 3 | . 3 . . Indirectly . | . . . . Trap Hack Attempts . | . . . . Triggered . | . . . . Disarmed . | . . . . Reprogrammed . | . . . . Reused . | . . . . Traps Extracted . | . . . . Installed . | . . . . Triggered . | . . . . Machines | -11 -10 -10 -9 ---------- Run | Yrd Mat Sub Rec Machines Disabled 5 | . 1 4 . Max in Single Turn 2 | . 1 2 . Machines Repaired . | . . . . Machines Dismantled . | . . . . Machines Sabotaged . | . . . . Overloaded Fab Kills . | . . . . Hacking | -11 -10 -10 -9 --------- Run | Yrd Mat Sub Rec Machines Accessed 10 | . 10 . . Terminals 8 | . 8 . . Fabricators . | . . . . Repair Stations 1 | . 1 . . Recycling Units 1 | . 1 . . Scanalyzers . | . . . . Garrison Access . | . . . . Total Hacks 29 | . 29 . . Successful 18 | . 18 . . Failed 11 | . 11 . . Catastrophic 1 | . 1 . . Database Lockouts . | . . . . Manual 27 | . 27 . . Terminals 25 | . 25 . . Fabricators . | . . . . Repair Stations 2 | . 2 . . Recycling Units 2 | . 2 . . Scanalyzers . | . . . . Garrison Access . | . . . . Terminal Hacks 1 | . 1 . . Terminal Index 1 | . 1 . . Fabricator Hacks . | . . . . Repair Station Hacks 2 | . 2 . . Scan Component 1 | . 1 . . Repair 1 | . 1 . . Recycling Unit Hacks . | . . . . Scanalyzer . | . . . . Garrison Access Hacks . | . . . . Unauthorized Hacks 13 | . 13 . . Terminals 13 | . 13 . . Track 1 | . 1 . . Assimilate 1 | . 1 . . Botnet 5 | . 5 . . Operators 1 | . 1 . . Skim 5 | . 5 . . Fabricators . | . . . . Repair Stations . | . . . . Recycling Units . | . . . . Scanalyzers . | . . . . Garrison Access . | . . . . Data Cores Recovered . | . . . . Used . | . . . . Hacking Detections 9 | . 9 . . Full Trace Events . | . . . . Feedback Events . | . . . . Feedback Blocked . | . . . . Robot Schematics Acquired . | . . . . Robots Built . | . . . . Authchips . | . . . . Time . | . . . . Total Robot Build Rating . | . . . . Part Schematics Acquired . | . . . . Parts Built . | . . . . Authchips . | . . . . Time . | . . . . Total Part Build Rating . | . . . . Parts Repaired 1 | . 1 . . Time 38 | . 38 . . Parts Recycled . | . . . . Recycled Matter . | . . . . Retrieved Matter . | . . . . Retrieved Components . | . . . . Parts Scanalyzed . | . . . . Part Schematics Acquired . | . . . . Parts Damaged . | . . . . Bothacking | -11 -10 -10 -9 ------------ Run | Yrd Mat Sub Rec Used RIF Installer . | . . . . Robots Hacked . | . . . . Non-combat . | . . . . Combat . | . . . . Robot Hacks Applied . | . . . . Relay Couplers Released . | . . . . Fabnet Peak Effective % . | . . . . Robots Rewired . | . . . . Allies Hacked . | . . . . Hacks Repelled . | . . . . Allies | -11 -10 -10 -9 -------- Run | Yrd Mat Sub Rec Total Allies 1 | . 1 . . Largest Group 1 | . 1 1 1 Highest-Rated Group 10 | . 10 10 9 Highest-Rated Ally 10 | . 10 10 9 Total Orders . | . . . . Ally Attacks . | . . . . Total Damage . | . . . . Kills . | . . . . Allies Corrupted . | . . . . Allies Melted . | . . . . Intel | -11 -10 -10 -9 ------- Run | Yrd Mat Sub Rec Robot Analysis Total . | . . . . Derelict Logs Recovered . | . . . . Drone Launches . | . . . . Drone Recoveries . | . . . . Exploration | -11 -10 -10 -9 ------------- Run | Yrd Mat Sub Rec Turns Passed 2892 | 104 2501 265 22 Spaces Moved 1046 | 52 936 53 5 Core 18 | . 18 . . Treads 692 | . 634 53 5 Legs 16 | 16 . . . Wheels 320 | 36 284 . . Hover . | . . . . Flight . | . . . . Fastest Speed 80 | 80 80 320 480 Average Speed 214 | 92 207 428 480 Slowest Speed 500 | 120 500 480 480 Overloaded Moves . | . . . . Propulsion Burnouts . | . . . . Robots Hopped . | . . . . Cave-ins Triggered . | . . . . Exploration Rate (%) 26 | 4 93 5 2 Regions Visited 3 Branch Regions 2 Pre-discovered Areas 2 | . 2 . . Known Exits Taken 1 | . . 1 . Unknown Exits Taken 2 | 1 1 . . Scrap Searched . | . . . . Spaces Dug 3 | . 3 . . Terrain Destroyed 109 | . 65 44 . Melee . | . . . . Projectile 3 | . 3 . . AOE 106 | . 62 44 . Terrain Rammed . | . . . . Walls Destroyed . | . . . . Machines Disabled . | . . . . Actions | -11 -10 -10 -9 --------- Run | Yrd Mat Sub Rec Total 1570 | 78 1419 68 5 Wait 398 | . 398 . . Move 1044 | 52 935 52 5 Hop . | . . . . Pick Up 29 | 4 25 . . Fast Attach . | . . . . Attach 11 | 1 8 2 . Detach . | . . . . Swap 11 | 3 7 1 . Drop 9 | 3 6 . . Fire 61 | 15 33 13 . Melee . | . . . . Ram 1 | . 1 . . Kick . | . . . . Crush 6 | . 6 . . Escape Stasis . | . . . . Rewire . | . . . . Trap . | . . . . Miscellaneous . | . . . . Route ------- -11/Scrapyard -10/Materials (discovered 5 exits: *Mat x3 / *Min / [*Sub]) -10/Subcaves -9/Recycling History --------- Turn | Location | Event 1 | -11/Scrapyard | Discovered new exit (range 3) 105 | -11/Scrapyard | Entered Materials 308 | -10/Materials | Build established: Mutant 321 | -10/Materials | Discovered new exit (range 11) 653 | -10/Materials | Discovered new exit (range 6) 705 | -10/Materials | Derelicts attacked the area 710 | -10/Materials | Discovered new exit (range 9) 717 | -10/Materials | Core integrity fell below 50% 752 | -10/Materials | Lost 3 parts (2n1w) 1128 | -10/Materials | Discovered new exit (range 16) 1263 | -10/Materials | Identified exit to Materials 1263 | -10/Materials | Learned location of 2 exits from Materials 1275 | -10/Materials | Learned location of Mines (-10) 1276 | -10/Materials | Learned Storage non-interactive machine intel 1277 | -10/Materials | Learned Storage non-interactive machine intel 1278 | -10/Materials | Loaded intel: 15 trap records 1280 | -10/Materials | Learned Storage emergency access door positions 1290 | -10/Materials | Identified exit to Mines 1310 | -10/Materials | Learned location of Storage (-9) 1347 | -10/Materials | Repaired Lgt. Nuclear Core 2606 | -10/Materials | Entered Subcaves 2606 | -10/Subcaves | Accompanied by 1 ally 2662 | -10/Subcaves | Discovered new exit (range 9) 2665 | -10/Subcaves | Core integrity fell below 20% 2714 | -10/Subcaves | Lost 3 parts (1p1n1u) 2857 | -10/Subcaves | Identified exit to Recycling 2871 | -10/Subcaves | Entered Recycling 2871 | -9/Recycling | Accompanied by 1 ally 2893 | -9/Recycling | Destroyed by Y-45 Defender with Heavy Assault Rifle Last Messages --------------- 02680_ Lgt. Treads destroyed. 02680_ Destroyed Lgt. Treads. 02683_ Imp. Terrain Scanner destroyed. 02686_ Destroyed Autobeam. 02689_ Machine disabled. 02692_ Autobeam Turret destroyed. 02695_ Destroyed Autobeam. 02698_ Autobeam Turret destroyed. 02699_ Technician 1a reports 0b10 security level has risen to 1. 02703_ The unstable cave ceiling collapses. 02770_ Acquired 7 matter. 02776_ The unstable cave ceiling collapses. 02835_ W:FB#LAL#KIO0PF1PJ8 HF>LCE, LHY | SPSC 02857_ EXIT=IDENTIFIED: RECYCLING LOCATION=RECYCLING GOAL=ESCAPE 02872_ Technician 1a reports 0b10 security level has lowered to 0. 02892_ Y-45 Defender springs to life. Map ----- +----------------------------------------------------+ | ?????????????????????????????????????? | | ?????????????????????????????????????? | | ?????????????????????????????????????? | | ?????????????????????????????????????? | | ?????????????????????????????????????? | | ?????????????????????????????????????? | | ?????????????????????????????????????? | | ?????????????????????????????????????? | | ?????????????????????????????????????? | | ?????????????????????????????????????? | | ?????????????????????????????????????? | | ?????????????????????????????????????? | | ?????????????????????????????????????? | | ?????????????????????????????????????? | | ?????????????????????????????????????? | | ?????????????????????????????????????? | | ?????????????????????????????????????? | | ?????????????????????????????????????? | | ?????????????????????????????????????? | | ?????????????????????????????????????? | | ?????????????????????????????????????? | | ?????????????????????????????????????? | | ???????????????????####??????????????? | | ??????########### #??????????????? | | ??????# #??????????????? | | ??????# o @ T #??????????????? | | ??????# #??????????????? | | ??????########### #??????????????? | | ??????????????????? Y##??????????????? | | ????????????????????? #??????????????? | | ?????????????????????????????????????? | | ?????????????????????????????????????? | | ?????????????????????????????????????? | | ?????????????????????????????????????? | | ?????????????????????????????????????? | | ?????????????????????????????????????? | | ?????????????????????????????????????? | | ?????????????????????????????????????? | | ?????????????????????????????????????? | | ?????????????????????????????????????? | | ?????????????????????????????????????? | | ?????????????????????????????????????? | | ?????????????????????????????????????? | | ?????????????????????????????????????? | | ?????????????????????????????????????? | | ?????????????????????????????????????? | | ?????????????????????????????????????? | | ?????????????????????????????????????? | | ?????????????????????????????????????? | | ?????????????????????????????????????? | +----------------------------------------------------+ Best States ------------- Heat Dissipation 25 Energy Generation 15 Energy Capacity 250 Matter Stores 300 Matter Capacity 300 Sight Range 16 Terrain Scan Range 16 Terrain Scan Density 10 Evasion (%) 54 Recoil Reduction 2 Item Schematics ----------------- None Robot Schematics ------------------ None Fabricated ------------ Nothing Alien Tech Used ----------------- None Achievements -------------- None Challenges ------------ None Game ------ Seed EtherialGatlingRedistributor Manual? 0 Play Time 00:16:06 Cumulative 48.3 hours Start 2024.11.16 @ 19:33:22 End 2024.11.16 @ 19:49:31 Sessions 1 Manual Loads 0 Difficulty Rogue Special Mode None Game No. 88 Rogue 88 Adventurer 0 Explorer 0 Win Type - Total 0 Types 0/0/0/0/0/0/0/0/0 Lore% 26 Gallery% 30 Achievement% 26 Wizard Run 0 Options --------- Layout 1 ASCII 0 Keyboard 0 Movement Arrows Keybinds 0 Fullscreen 1 Font 32/SmallcapsGlow Map View 55x47 Zoom Use 3% Tactical HUD 1 Map Filters NONE Filters NONE Steam 1 RUN: ae20b938-c88c-4234-be92-764952d2df74